Department Family,Entity,Date,Expense Type,Expense Area,Supplier,Transaction Number,Amount
DOH,London Ambulance Service NHS Trust,01/07/2015,Occupational Health Fees,Staff Support,Guys & St Thomas Nhs Foundation Trust,1948,43369.58
DOH,London Ambulance Service NHS Trust,22/07/2015,Occupational Health Fees,Staff Support,Guys & St Thomas Nhs Foundation Trust,1989,38693.3
DOH,London Ambulance Service NHS Trust,01/07/2015,Mobile Data Maintenance,Hart,Excelerate Technology Ltd,205944,129223.2
DOH,London Ambulance Service NHS Trust,01/07/2015,Rent,Southwark Bridge Road,Colliers International Property Advisers Llp,208248,32018.4
DOH,London Ambulance Service NHS Trust,01/07/2015,Private Ambulance Hire,Director Of Ops,X9 Services,208297,50877.59
DOH,London Ambulance Service NHS Trust,01/07/2015,Private Ambulance Hire,Director Of Ops,Medical Services Ltd,208333,52589.7
DOH,London Ambulance Service NHS Trust,01/07/2015,Defibrillator Purchase,Fru Procurement,De Lage Landen Leasing Ltd,208354,34959.6
DOH,London Ambulance Service NHS Trust,01/07/2015,Computer Hardware,Capital,Capita Secure Information Solutions Ltd,208939,28712.16
DOH,London Ambulance Service NHS Trust,01/07/2015,A&E Charge From Other Services,North Central Management,Chuhse,209045,34555
DOH,London Ambulance Service NHS Trust,01/07/2015,Course And Conference Fees,Education &Training Mgmt,F.T.S. Solutions Ltd,209049,27144
DOH,London Ambulance Service NHS Trust,01/07/2015,Course And Conference Fees,Education &Training Mgmt,F.T.S. Solutions Ltd,209050,25344
DOH,London Ambulance Service NHS Trust,01/07/2015,Consultancy Fees,Director Of Ops,Mirador,209056,30150
DOH,London Ambulance Service NHS Trust,28/07/2015,Lease Costs For A&E Vehicles,Frontline Vehicle Leases,De Lage Landen Leasing Ltd,209663,104430.17
DOH,London Ambulance Service NHS Trust,08/07/2015,Private Ambulance Hire,Director Of Ops,X9 Services,209736,54690.32
DOH,London Ambulance Service NHS Trust,08/07/2015,Private Ambulance Hire,Director Of Ops,X9 Services,209737,57230.69
DOH,London Ambulance Service NHS Trust,08/07/2015,Private Ambulance Hire,Director Of Ops,Srcl Ltd,209932,41282
DOH,London Ambulance Service NHS Trust,08/07/2015,Lease Costs For A&E Vehicles,Frontline Vehicle Leases,Siemens Financial Services Ltd,210473,107051.95
DOH,London Ambulance Service NHS Trust,08/07/2015,Private Ambulance Hire,Director Of Ops,Medical Services Ltd,210726,59522.1
DOH,London Ambulance Service NHS Trust,08/07/2015,Vehicles,Capital,S.Macneillie & Son Ltd,210830,77506.18
DOH,London Ambulance Service NHS Trust,08/07/2015,Vehicles,Capital,S.Macneillie & Son Ltd,210831,77506.18
DOH,London Ambulance Service NHS Trust,08/07/2015,Vehicles,Capital,S.Macneillie & Son Ltd,211050,77506.18
DOH,London Ambulance Service NHS Trust,15/07/2015,Tyres,Fleet Support Services,Ats Euromaster Ltd,211677,41422.24
DOH,London Ambulance Service NHS Trust,15/07/2015,Technical Support - Contract,Telent Mdt Maintenance,Telent Technology Services Ltd,211697,215694.52
DOH,London Ambulance Service NHS Trust,28/07/2015,Technical Support - Contract,Capita Contract,Capita Secure Information Solutions Ltd,211987,57183.1
DOH,London Ambulance Service NHS Trust,15/07/2015,Private Ambulance Hire,Director Of Ops,Srcl Ltd,212021,43552.75
DOH,London Ambulance Service NHS Trust,15/07/2015,Private Ambulance Hire,Director Of Ops,Srcl Ltd,212022,34988.75
DOH,London Ambulance Service NHS Trust,15/07/2015,Private Ambulance Hire,Director Of Ops,Srcl Ltd,212024,37991.75
DOH,London Ambulance Service NHS Trust,15/07/2015,Private Ambulance Hire,Director Of Ops,Srcl Ltd,212026,25290
DOH,London Ambulance Service NHS Trust,15/07/2015,Private Ambulance Hire,Director Of Ops,Srcl Ltd,212028,34986.25
DOH,London Ambulance Service NHS Trust,15/07/2015,Private Ambulance Hire,Director Of Ops,Srcl Ltd,212029,44842.25
DOH,London Ambulance Service NHS Trust,15/07/2015,Occupational Health Fees,Staff Support,Health Management Limited,212131,77723.23
DOH,London Ambulance Service NHS Trust,15/07/2015,Vehicles,Capital,S.Macneillie & Son Ltd,212251,77506.18
DOH,London Ambulance Service NHS Trust,15/07/2015,Vehicles,Capital,S.Macneillie & Son Ltd,212252,77506.18
DOH,London Ambulance Service NHS Trust,15/07/2015,Vehicles,Capital,S.Macneillie & Son Ltd,212253,77506.18
DOH,London Ambulance Service NHS Trust,15/07/2015,Vehicles,Capital,S.Macneillie & Son Ltd,212254,77506.18
DOH,London Ambulance Service NHS Trust,15/07/2015,Vehicles,Capital,S.Macneillie & Son Ltd,212255,77506.18
DOH,London Ambulance Service NHS Trust,15/07/2015,Vehicles,Capital,S.Macneillie & Son Ltd,212256,77506.18
DOH,London Ambulance Service NHS Trust,15/07/2015,Vehicles,Capital,S.Macneillie & Son Ltd,212257,77506.18
DOH,London Ambulance Service NHS Trust,22/07/2015,Vehicles,Capital,S.Macneillie & Son Ltd,212258,77506.18
DOH,London Ambulance Service NHS Trust,22/07/2015,Vehicles,Capital,S.Macneillie & Son Ltd,212259,77506.18
DOH,London Ambulance Service NHS Trust,22/07/2015,Vehicles,Capital,S.Macneillie & Son Ltd,212260,77506.18
DOH,London Ambulance Service NHS Trust,22/07/2015,Vehicles,Capital,S.Macneillie & Son Ltd,212261,77506.18
DOH,London Ambulance Service NHS Trust,28/07/2015,Private Ambulance Hire,Director Of Ops,Srcl Ltd,212927,30280.51
DOH,London Ambulance Service NHS Trust,22/07/2015,Professional Fees,Transformation,Cranfield Management Development Ltd,213173,144000
DOH,London Ambulance Service NHS Trust,22/07/2015,Vehicle Recovery,Fleet Support Services,The Mansfield Group,213629,87372
DOH,London Ambulance Service NHS Trust,22/07/2015,Medical & Surgical Items,Ambulance Procurement,Physio-Control Uk Sales Ltd,213671,78000
DOH,London Ambulance Service NHS Trust,22/07/2015,Vehicles,Capital,S.Macneillie & Son Ltd,213691,77506.18
DOH,London Ambulance Service NHS Trust,22/07/2015,Private Ambulance Hire,Director Of Ops,X9 Services,213718,48152.9
DOH,London Ambulance Service NHS Trust,28/07/2015,Private Ambulance Hire,Director Of Ops,Srcl Ltd,213724,26899.69
DOH,London Ambulance Service NHS Trust,28/07/2015,Data Network Rental,Networks,Bt Global Services,213923,29675.3
DOH,London Ambulance Service NHS Trust,22/07/2015,Cac Tools Maintenance,Cad Support,Priority Dispatch Corp Uk - Ltd,214009,99604.98
DOH,London Ambulance Service NHS Trust,28/07/2015,Electricity,Estate Management,British Gas,214263,62541.39
DOH,London Ambulance Service NHS Trust,28/07/2015,Cleaning Of Premises,Estate Management,Lakethorne Ltd,214399,70330.74
DOH,London Ambulance Service NHS Trust,28/07/2015,Lease Costs For A&E Vehicles,Frontline Vehicle Leases,Siemens Financial Services Ltd,214531,42448.87
DOH,London Ambulance Service NHS Trust,28/07/2015,Contract Labour,Corporate Logistics,Interserve Hospital Services,214577,252490.53
DOH,London Ambulance Service NHS Trust,28/07/2015,Vehicles,Capital,S.Macneillie & Son Ltd,214899,77506.18
DOH,London Ambulance Service NHS Trust,28/07/2015,Vehicles,Capital,S.Macneillie & Son Ltd,214900,77506.18
DOH,London Ambulance Service NHS Trust,28/07/2015,A&E Charge From Other Services,North Central Management,Chuhse,215811,34555
DOH,London Ambulance Service NHS Trust,27/07/2015,Lease Costs For A&E Vehicles,Deputy Director Of Operations,Shawbrook Bank Ltd,24024,423574.49
DOH,London Ambulance Service NHS Trust,15/07/2015,BP Control Account,Control Accounts,BP Oil,23866,180672.89
DOH,London Ambulance Service NHS Trust,01/07/2015,Ensign Insurance Debtor,Control Accounts,QBE International Insurance T/A Ensign,23616,239265.83
DOH,London Ambulance Service NHS Trust,21/07/2015,Child Care Arrangements,Payroll,Computerserve Vouchers,23924,28695.1
DOH,London Ambulance Service NHS Trust,27/07/2015,BOC Control Account,Control Accounts,British Oxygen,24024,104710.32
DOH,London Ambulance Service NHS Trust,31/07/2015,BP Control Account,Control Accounts,BP Oil,24487,189553.21
DOH,London Ambulance Service NHS Trust,15/07/2015,CNST Contributions,Legal Services,NHSLA,23866,142104.6
DOH,London Ambulance Service NHS Trust,15/07/2015,Liability to 3rd Party Scheme,Legal Services,NHSLA,23866,32521.9
DOH,London Ambulance Service NHS Trust,15/07/2015,Property Expenses Scheme,Legal Services,NHSLA,23866,1527.6
